[Event "Titled Tuesday Blitz October 12 2021"]
[White "Smirnov, Pavel"]
[Black "Perez Ponsa, Federico"]
[WhiteFideId "4123425"]
[BlackFideId "117927"]
[WhiteElo "2571"]
[BlackElo "2672"]
[Result "1-0"]
[Round "06"]
[TimeControl "180+1"]
[Date "2021.10.12"]
[WhiteClock "0:00:18"]
[BlackClock "0:02:00"]

1. d4 {[%clk 0:02:56]}  Nf6 {[%clk 0:03:00]} 2. c4 {[%clk 0:02:33]}  g6 {[%clk 0:03:00]} 3. Nf3 {[%clk 0:02:26]}  Bg7 {[%clk 0:03:01]} 4. g3 {[%clk 0:02:24]}  O-O {[%clk 0:02:59]} 5. Bg2 {[%clk 0:02:02]}  d6 {[%clk 0:03:00]} 6. O-O {[%clk 0:02:03]}  c6 {[%clk 0:03:00]} 7. Nc3 {[%clk 0:02:02]}  Bf5 {[%clk 0:03:01]} 8. Re1 {[%clk 0:01:36]}  Ne4 {[%clk 0:02:55]} 9. Qb3 {[%clk 0:01:34]}  Nxc3 {[%clk 0:02:54]} 10. bxc3 {[%clk 0:01:31]}  Qb6 {[%clk 0:02:54]} 11. e4 {[%clk 0:01:04]}  Bg4 {[%clk 0:02:50]} 12. Bg5 {[%clk 0:00:48]}  Re8 {[%clk 0:02:48]} 13. h3 {[%clk 0:00:45]}  Bxf3 {[%clk 0:02:47]} 14. Bxf3 {[%clk 0:00:41]}  c5 {[%clk 0:02:46]} 15. e5 {[%clk 0:00:34]}  Nc6 {[%clk 0:02:46]} 16. dxc5 {[%clk 0:00:25]}  dxc5 {[%clk 0:02:41]} 17. Bf4 {[%clk 0:00:25]}  Na5 {[%clk 0:02:39]} 18. Qa4 {[%clk 0:00:23]}  e6 {[%clk 0:02:29]} 19. Rab1 {[%clk 0:00:22]}  Qc7 {[%clk 0:02:29]} 20. Rb5 {[%clk 0:00:21]}  b6 {[%clk 0:02:22]} 21. Bxa8 {[%clk 0:00:19]}  Rxa8 {[%clk 0:02:23]} 22. Rbb1 {[%clk 0:00:19]}  h6 {[%clk 0:02:24]} 23. h4 {[%clk 0:00:17]}  Qe7 {[%clk 0:02:18]} 24. Rbd1 {[%clk 0:00:17]}  g5 {[%clk 0:02:07]} 25. Rd7 {[%clk 0:00:16]}  Qe8 {[%clk 0:02:07]} 26. hxg5 {[%clk 0:00:16]}  hxg5 {[%clk 0:02:08]} 27. Bxg5 {[%clk 0:00:16]}  Nxc4 {[%clk 0:02:09]} 28. Red1 {[%clk 0:00:14]}  Nb2 {[%clk 0:01:55]} 29. Qg4 {[%clk 0:00:13]}  Nxd1 {[%clk 0:01:51]} 30. Bf6 {[%clk 0:00:12]}  Qf8 {[%clk 0:01:48]} 31. Rxd1 {[%clk 0:00:12]}  Kh7 {[%clk 0:01:48]} 32. Qe4+ {[%clk 0:00:11]}  Kg8 {[%clk 0:01:46]} 33. Qg4 {[%clk 0:00:11]}  Kh7 {[%clk 0:01:40]} 34. Bxg7 {[%clk 0:00:11]}  Qxg7 {[%clk 0:01:36]} 35. Qe4+ {[%clk 0:00:11]}  Qg6 {[%clk 0:01:37]} 36. Qxa8 {[%clk 0:00:11]}  Qc2 {[%clk 0:01:38]} 37. Qf3 {[%clk 0:00:10]}  Kg7 {[%clk 0:01:38]} 38. Kg2 {[%clk 0:00:11]}  Qg6 {[%clk 0:01:37]} 39. Qf6+ {[%clk 0:00:11]}  Qxf6 {[%clk 0:01:38]} 40. exf6+ {[%clk 0:00:12]}  Kxf6 {[%clk 0:01:39]} 41. Rd7 {[%clk 0:00:12]}  b5 {[%clk 0:01:39]} 42. Rxa7 {[%clk 0:00:12]}  Ke5 {[%clk 0:01:40]} 43. Rb7 {[%clk 0:00:11]}  Kd5 {[%clk 0:01:41]} 44. Rxb5 {[%clk 0:00:11]}  Kc6 {[%clk 0:01:42]} 45. Ra5 {[%clk 0:00:12]}  Kb6 {[%clk 0:01:42]} 46. Ra4 {[%clk 0:00:12]}  Kb5 {[%clk 0:01:43]} 47. Rf4 {[%clk 0:00:12]}  f5 {[%clk 0:01:44]} 48. g4 {[%clk 0:00:13]}  fxg4 {[%clk 0:01:44]} 49. Rxg4 {[%clk 0:00:13]}  Kc6 {[%clk 0:01:45]} 50. Re4 {[%clk 0:00:13]}  Kd5 {[%clk 0:01:46]} 51. Kf3 {[%clk 0:00:13]}  Kd6 {[%clk 0:01:47]} 52. Ke3 {[%clk 0:00:14]}  Kd5 {[%clk 0:01:48]} 53. f4 {[%clk 0:00:14]}  Kd6 {[%clk 0:01:48]} 54. Re5 {[%clk 0:00:15]}  Kc6 {[%clk 0:01:49]} 55. Rxe6+ {[%clk 0:00:14]}  Kd5 {[%clk 0:01:50]} 56. Re5+ {[%clk 0:00:15]}  Kd6 {[%clk 0:01:50]} 57. Ke4 {[%clk 0:00:16]}  Kc6 {[%clk 0:01:51]} 58. c4 {[%clk 0:00:15]}  Kd6 {[%clk 0:01:52]} 59. Rxc5 {[%clk 0:00:15]}  Kxc5 {[%clk 0:01:52]} 60. Ke5 {[%clk 0:00:16]}  Kc6 {[%clk 0:01:53]} 61. f5 {[%clk 0:00:16]}  Kd7 {[%clk 0:01:54]} 62. f6 {[%clk 0:00:17]}  Ke8 {[%clk 0:01:55]} 63. Ke6 {[%clk 0:00:17]}  Kd8 {[%clk 0:01:55]} 64. f7 {[%clk 0:00:17]}  Kc7 {[%clk 0:01:56]} 65. f8=Q {[%clk 0:00:18]}  Kc6 {[%clk 0:01:57]} 66. Qc8+ {[%clk 0:00:17]}  Kb6 {[%clk 0:01:58]} 67. Kd6 {[%clk 0:00:17]}  Ka5 {[%clk 0:01:58]} 68. Qb7 {[%clk 0:00:17]}  Ka4 {[%clk 0:01:59]} 69. Qb5+ {[%clk 0:00:17]}  Ka3 {[%clk 0:02:00]} 70. Qb3# {[%clk 0:00:18]} 1-0


[Site "https://www.chess.com"]

[Event "Titled Tuesday Blitz October 12 2021"]
[White "Sviridov, Valery"]
[Black "Gelman, Alexander"]
[WhiteFideId "4120680"]
[BlackFideId "4118316"]
[WhiteElo "2454"]
[BlackElo "2375"]
[Result "1-0"]
[Round "06"]
[TimeControl "180+1"]
[Date "2021.10.12"]
[WhiteClock "0:01:25"]
[BlackClock "0:00:18"]

1. Nf3 {[%clk 0:03:00]}  c5 {[%clk 0:02:59]} 2. c4 {[%clk 0:02:59]}  Nf6 {[%clk 0:03:00]} 3. Nc3 {[%clk 0:03:00]}  e6 {[%clk 0:03:00]} 4. g3 {[%clk 0:03:00]}  d6 {[%clk 0:03:00]} 5. Bg2 {[%clk 0:03:00]}  Be7 {[%clk 0:03:01]} 6. d4 {[%clk 0:03:00]}  cxd4 {[%clk 0:03:01]} 7. Nxd4 {[%clk 0:03:01]}  a6 {[%clk 0:03:02]} 8. O-O {[%clk 0:03:01]}  O-O {[%clk 0:03:02]} 9. b3 {[%clk 0:03:01]}  Qc7 {[%clk 0:03:03]} 10. Bb2 {[%clk 0:03:01]}  Nbd7 {[%clk 0:03:04]} 11. e4 {[%clk 0:03:00]}  Ne5 {[%clk 0:03:04]} 12. f4 {[%clk 0:03:00]}  Ng6 {[%clk 0:03:03]} 13. Kh1 {[%clk 0:03:00]}  Re8 {[%clk 0:02:46]} 14. Rc1 {[%clk 0:02:58]}  Bd7 {[%clk 0:02:46]} 15. Qe2 {[%clk 0:02:39]}  Rac8 {[%clk 0:02:45]} 16. Nf3 {[%clk 0:02:38]}  Bc6 {[%clk 0:02:30]} 17. Rce1 {[%clk 0:02:32]}  Qa5 {[%clk 0:02:12]} 18. Ng5 {[%clk 0:02:21]}  h6 {[%clk 0:02:04]} 19. Nxf7 {[%clk 0:02:20]}  Kxf7 {[%clk 0:01:59]} 20. e5 {[%clk 0:02:21]}  Bxg2+ {[%clk 0:01:55]} 21. Kxg2 {[%clk 0:02:20]}  dxe5 {[%clk 0:01:24]} 22. fxe5 {[%clk 0:02:20]}  Nxe5 {[%clk 0:01:24]} 23. Qxe5 {[%clk 0:02:13]}  Qxe5 {[%clk 0:01:24]} 24. Rxe5 {[%clk 0:02:14]}  Rcd8 {[%clk 0:01:08]} 25. Re2 {[%clk 0:02:13]}  Rd3 {[%clk 0:00:57]} 26. Ne4 {[%clk 0:02:12]}  Red8 {[%clk 0:00:55]} 27. Ref2 {[%clk 0:02:11]}  b5 {[%clk 0:00:37]} 28. cxb5 {[%clk 0:02:07]}  axb5 {[%clk 0:00:37]} 29. Nxf6 {[%clk 0:02:08]}  Bxf6 {[%clk 0:00:38]} 30. Bxf6 {[%clk 0:02:07]}  gxf6 {[%clk 0:00:38]} 31. Rxf6+ {[%clk 0:02:08]}  Ke7 {[%clk 0:00:39]} 32. Rxh6 {[%clk 0:01:48]}  Rd2+ {[%clk 0:00:39]} 33. Rf2 {[%clk 0:01:49]}  Rxf2+ {[%clk 0:00:39]} 34. Kxf2 {[%clk 0:01:50]}  Rd2+ {[%clk 0:00:40]} 35. Ke3 {[%clk 0:01:51]}  Rxa2 {[%clk 0:00:41]} 36. Kd4 {[%clk 0:01:51]}  Rc2 {[%clk 0:00:39]} 37. h4 {[%clk 0:01:49]}  b4 {[%clk 0:00:39]} 38. Rh7+ {[%clk 0:01:48]}  Kf6 {[%clk 0:00:40]} 39. g4 {[%clk 0:01:42]}  Rc3 {[%clk 0:00:40]} 40. g5+ {[%clk 0:01:43]}  Kg6 {[%clk 0:00:36]} 41. Rh6+ {[%clk 0:01:43]}  Kf7 {[%clk 0:00:36]} 42. h5 {[%clk 0:01:39]}  Rxb3 {[%clk 0:00:36]} 43. Rh7+ {[%clk 0:01:39]}  Kg8 {[%clk 0:00:30]} 44. g6 {[%clk 0:01:36]}  Rg3 {[%clk 0:00:29]} 45. Ke5 {[%clk 0:01:28]}  b3 {[%clk 0:00:29]} 46. Rb7 {[%clk 0:01:27]}  Rg5+ {[%clk 0:00:17]} 47. Kf6 {[%clk 0:01:26]}  Rf5+ {[%clk 0:00:17]} 48. Kxe6 {[%clk 0:01:27]}  Rxh5 {[%clk 0:00:18]} 49. Kf6 {[%clk 0:01:25]} 1-0


[Site "https://www.chess.com"]

[Event "Titled Tuesday Blitz October 12 2021"]
[White "Timmermans, Mark"]
[Black "Volkov, Maksim"]
[WhiteFideId "1026399"]
[BlackFideId "54123070"]
[WhiteElo "2460"]
[BlackElo "2113"]
[Result "1-0"]
[Round "06"]
[TimeControl "180+1"]
[Date "2021.10.12"]
[WhiteClock "0:01:22"]
[BlackClock "0:00:02"]

1. b4 {[%clk 0:03:00]}  a5 {[%clk 0:02:54]} 2. b5 {[%clk 0:02:56]}  d5 {[%clk 0:02:50]} 3. Bb2 {[%clk 0:02:57]}  Nf6 {[%clk 0:02:46]} 4. e3 {[%clk 0:02:57]}  c5 {[%clk 0:02:42]} 5. c4 {[%clk 0:02:58]}  e6 {[%clk 0:02:39]} 6. Nf3 {[%clk 0:02:58]}  Bd6 {[%clk 0:02:39]} 7. a4 {[%clk 0:02:52]}  O-O {[%clk 0:02:38]} 8. Be2 {[%clk 0:02:46]}  Nbd7 {[%clk 0:02:29]} 9. cxd5 {[%clk 0:02:45]}  Nxd5 {[%clk 0:02:24]} 10. O-O {[%clk 0:02:46]}  b6 {[%clk 0:02:23]} 11. d4 {[%clk 0:02:41]}  Bb7 {[%clk 0:02:19]} 12. Nbd2 {[%clk 0:02:40]}  Qe7 {[%clk 0:02:14]} 13. Nc4 {[%clk 0:02:38]}  Rac8 {[%clk 0:02:10]} 14. Rc1 {[%clk 0:02:35]}  Rfd8 {[%clk 0:02:10]} 15. Nxd6 {[%clk 0:02:33]}  Qxd6 {[%clk 0:02:10]} 16. Qb3 {[%clk 0:02:30]}  cxd4 {[%clk 0:02:04]} 17. Nxd4 {[%clk 0:02:24]}  Nc5 {[%clk 0:02:03]} 18. Qa2 {[%clk 0:02:25]}  Nb4 {[%clk 0:01:49]} 19. Qa3 {[%clk 0:02:24]}  Qe7 {[%clk 0:01:35]} 20. Bf3 {[%clk 0:02:13]}  Bxf3 {[%clk 0:01:27]} 21. Nxf3 {[%clk 0:02:14]}  Rd3 {[%clk 0:01:20]} 22. Rc3 {[%clk 0:02:12]}  Rxc3 {[%clk 0:01:20]} 23. Bxc3 {[%clk 0:02:13]}  Nxa4 {[%clk 0:01:19]} 24. Bxg7 {[%clk 0:02:06]}  Kxg7 {[%clk 0:01:04]} 25. Qxa4 {[%clk 0:02:06]}  e5 {[%clk 0:01:01]} 26. Rd1 {[%clk 0:02:05]}  f6 {[%clk 0:00:57]} 27. h3 {[%clk 0:02:05]}  Kf8 {[%clk 0:00:55]} 28. Qb3 {[%clk 0:01:52]}  Rc7 {[%clk 0:00:49]} 29. e4 {[%clk 0:01:41]}  Rd7 {[%clk 0:00:37]} 30. Rc1 {[%clk 0:01:39]}  Rc7 {[%clk 0:00:37]} 31. Rxc7 {[%clk 0:01:39]}  Qxc7 {[%clk 0:00:37]} 32. Qe3 {[%clk 0:01:35]}  Kg8 {[%clk 0:00:30]} 33. Nh4 {[%clk 0:01:35]}  a4 {[%clk 0:00:22]} 34. Nf5 {[%clk 0:01:35]}  Nc2 {[%clk 0:00:19]} 35. Qh6 {[%clk 0:01:26]}  Qf7 {[%clk 0:00:16]} 36. Qd2 {[%clk 0:01:26]}  Qc7 {[%clk 0:00:14]} 37. Qd5+ {[%clk 0:01:26]}  Kf8 {[%clk 0:00:14]} 38. Qe6 {[%clk 0:01:25]}  a3 {[%clk 0:00:12]} 39. Qxf6+ {[%clk 0:01:23]}  Ke8 {[%clk 0:00:13]} 40. Ng7+ {[%clk 0:01:22]}  Kd7 {[%clk 0:00:02]} 41. Qe6+ {[%clk 0:01:22]} 1-0


[Site "https://www.chess.com"]

[Event "Titled Tuesday Blitz October 12 2021"]
[White "Visakh N R"]
[Black "Ghimpu, Samuel-Timotei"]
[WhiteFideId "25012223"]
[BlackFideId "1238175"]
[WhiteElo "2454"]
[BlackElo "2012"]
[Result "1-0"]
[Round "06"]
[TimeControl "180+1"]
[Date "2021.10.12"]
[WhiteClock "0:00:57"]
[BlackClock "0:00:17"]

1. c4 {[%clk 0:02:59]}  Nf6 {[%clk 0:02:59]} 2. Nc3 {[%clk 0:02:51]}  e5 {[%clk 0:02:58]} 3. g3 {[%clk 0:02:51]}  Bb4 {[%clk 0:02:57]} 4. Bg2 {[%clk 0:02:50]}  O-O {[%clk 0:02:57]} 5. Nf3 {[%clk 0:02:49]}  Re8 {[%clk 0:02:55]} 6. O-O {[%clk 0:02:49]}  d6 {[%clk 0:02:53]} 7. d3 {[%clk 0:02:45]}  Bxc3 {[%clk 0:02:46]} 8. bxc3 {[%clk 0:02:44]}  Nc6 {[%clk 0:02:47]} 9. Bg5 {[%clk 0:02:43]}  Bd7 {[%clk 0:02:41]} 10. Rb1 {[%clk 0:02:42]}  b6 {[%clk 0:02:41]} 11. Nd2 {[%clk 0:02:42]}  h6 {[%clk 0:01:48]} 12. Bxf6 {[%clk 0:02:41]}  gxf6 {[%clk 0:01:49]} 13. f4 {[%clk 0:02:27]}  Rb8 {[%clk 0:01:48]} 14. e3 {[%clk 0:02:13]}  Kg7 {[%clk 0:01:48]} 15. Qh5 {[%clk 0:02:12]}  Ne7 {[%clk 0:01:31]} 16. fxe5 {[%clk 0:02:07]}  dxe5 {[%clk 0:01:32]} 17. Rf2 {[%clk 0:01:50]}  Ng6 {[%clk 0:01:26]} 18. Rbf1 {[%clk 0:01:48]}  f5 {[%clk 0:01:00]} 19. Bh3 {[%clk 0:01:43]}  f4 {[%clk 0:01:00]} 20. gxf4 {[%clk 0:01:27]}  exf4 {[%clk 0:00:57]} 21. exf4 {[%clk 0:01:26]}  Bxh3 {[%clk 0:00:49]} 22. Qxh3 {[%clk 0:01:27]}  Kh7 {[%clk 0:00:35]} 23. Ne4 {[%clk 0:01:24]}  Rg8 {[%clk 0:00:32]} 24. Kh1 {[%clk 0:01:22]}  Qe7 {[%clk 0:00:30]} 25. Re2 {[%clk 0:01:17]}  Qd8 {[%clk 0:00:21]} 26. Qf5 {[%clk 0:01:10]}  Kg7 {[%clk 0:00:21]} 27. Ng3 {[%clk 0:01:09]}  Rf8 {[%clk 0:00:17]} 28. Nh5+ {[%clk 0:01:08]}  Kh7 {[%clk 0:00:18]} 29. Rg1 {[%clk 0:01:04]}  Qh4 {[%clk 0:00:17]} 30. Re6 {[%clk 0:00:57]} 1-0


[Site "https://www.chess.com"]

[Event "Titled Tuesday Blitz October 12 2021"]
[White "Zarnicki, Pablo"]
[Black "Le, Tuan Minh"]
[WhiteFideId "100137"]
[BlackFideId "12401153"]
[WhiteElo "2467"]
[BlackElo "2450"]
[Result "0-1"]
[Round "06"]
[TimeControl "180+1"]
[Date "2021.10.12"]
[WhiteClock "0:00:10"]
[BlackClock "0:00:16"]

1. e4 {[%clk 0:03:00]}  c5 {[%clk 0:02:59]} 2. Nf3 {[%clk 0:03:00]}  Nf6 {[%clk 0:03:00]} 3. e5 {[%clk 0:02:58]}  Nd5 {[%clk 0:03:00]} 4. Nc3 {[%clk 0:02:58]}  e6 {[%clk 0:03:01]} 5. Nxd5 {[%clk 0:02:56]}  exd5 {[%clk 0:03:02]} 6. d4 {[%clk 0:02:56]}  Nc6 {[%clk 0:03:02]} 7. c3 {[%clk 0:02:55]}  d6 {[%clk 0:03:02]} 8. Bb5 {[%clk 0:02:52]}  cxd4 {[%clk 0:02:58]} 9. Nxd4 {[%clk 0:02:43]}  Bd7 {[%clk 0:02:58]} 10. exd6 {[%clk 0:02:40]}  Bxd6 {[%clk 0:02:58]} 11. O-O {[%clk 0:02:33]}  O-O {[%clk 0:02:58]} 12. Be2 {[%clk 0:02:29]}  Re8 {[%clk 0:02:23]} 13. Bf3 {[%clk 0:02:29]}  Ne7 {[%clk 0:01:46]} 14. g3 {[%clk 0:02:25]}  Bh3 {[%clk 0:01:45]} 15. Bg2 {[%clk 0:02:21]}  Bxg2 {[%clk 0:01:45]} 16. Kxg2 {[%clk 0:02:21]}  Qd7 {[%clk 0:01:43]} 17. Qf3 {[%clk 0:02:19]}  Bc5 {[%clk 0:01:33]} 18. Be3 {[%clk 0:02:17]}  Ng6 {[%clk 0:01:34]} 19. Qf5 {[%clk 0:02:04]}  Qd6 {[%clk 0:01:24]} 20. Rad1 {[%clk 0:01:55]}  a6 {[%clk 0:01:20]} 21. Nc2 {[%clk 0:01:48]}  Rad8 {[%clk 0:01:17]} 22. Bxc5 {[%clk 0:01:43]}  Qxc5 {[%clk 0:01:18]} 23. Rfe1 {[%clk 0:01:39]}  Ne7 {[%clk 0:01:01]} 24. Qf3 {[%clk 0:01:33]}  h6 {[%clk 0:00:59]} 25. Ne3 {[%clk 0:01:28]}  Qb5 {[%clk 0:00:57]} 26. Rd2 {[%clk 0:01:27]}  Nc6 {[%clk 0:00:55]} 27. Red1 {[%clk 0:01:16]}  Ne5 {[%clk 0:00:54]} 28. Qf4 {[%clk 0:01:01]}  Ng6 {[%clk 0:00:46]} 29. Qb4 {[%clk 0:01:01]}  Qc6 {[%clk 0:00:39]} 30. Qd4 {[%clk 0:00:52]}  Re4 {[%clk 0:00:37]} 31. Qxe4 {[%clk 0:00:51]}  dxe4 {[%clk 0:00:36]} 32. Rxd8+ {[%clk 0:00:52]}  Kh7 {[%clk 0:00:37]} 33. R8d5 {[%clk 0:00:48]}  Qf6 {[%clk 0:00:23]} 34. h4 {[%clk 0:00:42]}  Ne7 {[%clk 0:00:21]} 35. R5d4 {[%clk 0:00:38]}  Qf3+ {[%clk 0:00:20]} 36. Kg1 {[%clk 0:00:38]}  f5 {[%clk 0:00:19]} 37. Ng2 {[%clk 0:00:36]}  Ng6 {[%clk 0:00:18]} 38. Re1 {[%clk 0:00:33]}  Ne5 {[%clk 0:00:18]} 39. Re3 {[%clk 0:00:29]}  Qg4 {[%clk 0:00:17]} 40. Ne1 {[%clk 0:00:25]}  Qh3 {[%clk 0:00:17]} 41. g4 {[%clk 0:00:14]}  Qxg4+ {[%clk 0:00:17]} 42. Rg3 {[%clk 0:00:14]}  Qe2 {[%clk 0:00:16]} 43. Re3 {[%clk 0:00:12]}  Qxb2 {[%clk 0:00:16]} 44. Rd5 {[%clk 0:00:10]}  Ng4 {[%clk 0:00:16]} 0-1


[Site "https://www.chess.com"]

[Event "Titled Tuesday Blitz October 12 2021"]
[White "Abdyzhapar, Asylbek"]
[Black "Dev, Shah"]
[WhiteFideId "13800337"]
[BlackFideId "35019058"]
[WhiteElo "2383"]
[BlackElo "2098"]
[Result "1-0"]
[Round "07"]
[TimeControl "180+1"]
[Date "2021.10.12"]
[WhiteClock "0:00:52"]
[BlackClock "0:00:05"]

1. d4 {[%clk 0:03:00]}  d5 {[%clk 0:02:58]} 2. c4 {[%clk 0:03:01]}  dxc4 {[%clk 0:02:59]} 3. e3 {[%clk 0:03:01]}  Nf6 {[%clk 0:02:59]} 4. Bxc4 {[%clk 0:03:01]}  e6 {[%clk 0:03:00]} 5. Nf3 {[%clk 0:03:01]}  c5 {[%clk 0:03:01]} 6. O-O {[%clk 0:03:01]}  a6 {[%clk 0:03:01]} 7. Qe2 {[%clk 0:03:01]}  b5 {[%clk 0:02:51]} 8. Bb3 {[%clk 0:03:01]}  Bb7 {[%clk 0:02:46]} 9. Rd1 {[%clk 0:02:59]}  Nbd7 {[%clk 0:02:46]} 10. a4 {[%clk 0:02:55]}  b4 {[%clk 0:02:29]} 11. Nbd2 {[%clk 0:02:54]}  Be7 {[%clk 0:02:08]} 12. Nc4 {[%clk 0:02:54]}  Qc7 {[%clk 0:02:08]} 13. a5 {[%clk 0:02:46]}  O-O {[%clk 0:02:06]} 14. Bd2 {[%clk 0:02:46]}  Rfd8 {[%clk 0:02:01]} 15. Be1 {[%clk 0:02:46]}  cxd4 {[%clk 0:01:52]} 16. exd4 {[%clk 0:02:46]}  Bd5 {[%clk 0:01:45]} 17. Rac1 {[%clk 0:02:45]}  Bxc4 {[%clk 0:01:42]} 18. Rxc4 {[%clk 0:02:40]}  Qxa5 {[%clk 0:01:41]} 19. g3 {[%clk 0:02:31]}  Nb6 {[%clk 0:01:32]} 20. Rc6 {[%clk 0:02:29]}  Rac8 {[%clk 0:01:28]} 21. Ne5 {[%clk 0:02:23]}  Nbd5 {[%clk 0:01:22]} 22. Rdc1 {[%clk 0:02:19]}  Rxc6 {[%clk 0:01:07]} 23. Nxc6 {[%clk 0:02:12]}  Qc7 {[%clk 0:01:07]} 24. Qxa6 {[%clk 0:02:12]}  Rf8 {[%clk 0:00:51]} 25. Rc2 {[%clk 0:02:04]}  Qd6 {[%clk 0:00:45]} 26. Qb7 {[%clk 0:02:03]}  Bd8 {[%clk 0:00:31]} 27. Nxb4 {[%clk 0:01:58]}  Be7 {[%clk 0:00:10]} 28. Nc6 {[%clk 0:01:52]}  Bd8 {[%clk 0:00:09]} 29. Bc4 {[%clk 0:01:47]}  Bb6 {[%clk 0:00:09]} 30. Bf1 {[%clk 0:01:38]}  Nd7 {[%clk 0:00:06]} 31. b4 {[%clk 0:01:32]}  h6 {[%clk 0:00:05]} 32. b5 {[%clk 0:01:31]}  N7f6 {[%clk 0:00:03]} 33. Ra2 {[%clk 0:01:22]}  Bc7 {[%clk 0:00:03]} 34. Ra6 {[%clk 0:01:20]}  h5 {[%clk 0:00:02]} 35. Ne5 {[%clk 0:01:17]}  Qe7 {[%clk 0:00:02]} 36. b6 {[%clk 0:01:13]}  h4 {[%clk 0:00:02]} 37. bxc7 {[%clk 0:01:12]}  hxg3 {[%clk 0:00:03]} 38. hxg3 {[%clk 0:01:12]}  Nxc7 {[%clk 0:00:04]} 39. Ra7 {[%clk 0:01:10]}  Nfd5 {[%clk 0:00:05]} 40. Bg2 {[%clk 0:01:07]}  Qg5 {[%clk 0:00:05]} 41. Qc6 {[%clk 0:01:02]}  Qf5 {[%clk 0:00:04]} 42. Rxc7 {[%clk 0:00:59]}  Nxc7 {[%clk 0:00:05]} 43. Qxc7 {[%clk 0:00:59]}  Qb1 {[%clk 0:00:06]} 44. Kf1 {[%clk 0:00:55]}  Qb5+ {[%clk 0:00:05]} 45. Qc4 {[%clk 0:00:54]}  Qb1 {[%clk 0:00:05]} 46. Qd3 {[%clk 0:00:52]}  Rc8 {[%clk 0:00:05]} 1-0


[Site "https://www.chess.com"]

[Event "Titled Tuesday Blitz October 12 2021"]
[White "Almiron, Antonio"]
[Black "Pichot, Alan"]
[WhiteFideId "3701166"]
[BlackFideId "110973"]
[WhiteElo "2237"]
[BlackElo "2600"]
[Result "0-1"]
[Round "07"]
[TimeControl "180+1"]
[Date "2021.10.12"]
[WhiteClock "0:00:01"]
[BlackClock "0:01:10"]

1. e4 {[%clk 0:03:00]}  c5 {[%clk 0:02:58]} 2. Nf3 {[%clk 0:02:59]}  d6 {[%clk 0:02:59]} 3. d4 {[%clk 0:02:56]}  cxd4 {[%clk 0:03:00]} 4. Qxd4 {[%clk 0:02:56]}  Nf6 {[%clk 0:02:59]} 5. Be2 {[%clk 0:02:49]}  Nc6 {[%clk 0:02:55]} 6. Qe3 {[%clk 0:02:49]}  g6 {[%clk 0:02:56]} 7. O-O {[%clk 0:02:42]}  Bg4 {[%clk 0:02:56]} 8. Rd1 {[%clk 0:02:30]}  Bxf3 {[%clk 0:02:54]} 9. Bxf3 {[%clk 0:02:28]}  Qc8 {[%clk 0:02:51]} 10. c4 {[%clk 0:02:08]}  Bg7 {[%clk 0:02:48]} 11. Nc3 {[%clk 0:02:06]}  O-O {[%clk 0:02:48]} 12. b3 {[%clk 0:02:03]}  Nd7 {[%clk 0:02:35]} 13. Bb2 {[%clk 0:02:00]}  Nc5 {[%clk 0:02:35]} 14. Rab1 {[%clk 0:01:56]}  a5 {[%clk 0:02:16]} 15. Nd5 {[%clk 0:00:55]}  Bxb2 {[%clk 0:02:13]} 16. Rxb2 {[%clk 0:00:56]}  Qe6 {[%clk 0:02:11]} 17. Rbd2 {[%clk 0:00:48]}  Rac8 {[%clk 0:02:09]} 18. Nb6 {[%clk 0:00:45]}  Rcd8 {[%clk 0:02:08]} 19. Nd5 {[%clk 0:00:46]}  Qe5 {[%clk 0:02:08]} 20. g3 {[%clk 0:00:44]}  e6 {[%clk 0:01:53]} 21. Nc3 {[%clk 0:00:35]}  Rd7 {[%clk 0:01:42]} 22. Bg2 {[%clk 0:00:28]}  Rfd8 {[%clk 0:01:41]} 23. f4 {[%clk 0:00:28]}  Qf6 {[%clk 0:01:41]} 24. Nb5 {[%clk 0:00:21]}  Qe7 {[%clk 0:01:41]} 25. h4 {[%clk 0:00:16]}  a4 {[%clk 0:01:38]} 26. Kh2 {[%clk 0:00:16]}  axb3 {[%clk 0:01:38]} 27. axb3 {[%clk 0:00:17]}  e5 {[%clk 0:01:38]} 28. Bh3 {[%clk 0:00:11]}  exf4 {[%clk 0:01:38]} 29. Qxf4 {[%clk 0:00:10]}  Ne6 {[%clk 0:01:36]} 30. Qe3 {[%clk 0:00:07]}  Ne5 {[%clk 0:01:36]} 31. Nc3 {[%clk 0:00:02]}  Qf8 {[%clk 0:01:24]} 32. Nd5 {[%clk 0:00:02]}  Qg7 {[%clk 0:01:25]} 33. Rf2 {[%clk 0:00:02]}  Kh8 {[%clk 0:01:25]} 34. Rdf1 {[%clk 0:00:01]}  h6 {[%clk 0:01:16]} 35. Nf6 {[%clk 0:00:02]}  Re7 {[%clk 0:01:16]} 36. Nd5 {[%clk 0:00:03]}  Red7 {[%clk 0:01:14]} 37. Nf6 {[%clk 0:00:04]}  Rc7 {[%clk 0:01:11]} 38. Nd5 {[%clk 0:00:05]}  Rc5 {[%clk 0:01:10]} 39. Nf6 {[%clk 0:00:02]}  b5 {[%clk 0:01:10]} 40. cxb5 {[%clk 0:00:01]}  Rxb5 {[%clk 0:01:11]} 41. Nd5 {[%clk 0:00:01]}  Rdb8 {[%clk 0:01:10]} 0-1


[Site "https://www.chess.com"]

[Event "Titled Tuesday Blitz October 12 2021"]
[White "Anuj Shrivatri"]
[Black "Obregon, Andres Carlos"]
[WhiteFideId "35070924"]
[BlackFideId "111724"]
[WhiteElo "2038"]
[BlackElo "2572"]
[Result "0-1"]
[Round "07"]
[TimeControl "180+1"]
[Date "2021.10.12"]
[WhiteClock "0:00:18"]
[BlackClock "0:01:08"]

1. e4 {[%clk 0:03:00]}  e6 {[%clk 0:02:59]} 2. d4 {[%clk 0:02:49]}  d5 {[%clk 0:02:58]} 3. e5 {[%clk 0:02:50]}  c5 {[%clk 0:02:54]} 4. c3 {[%clk 0:02:44]}  Nc6 {[%clk 0:02:49]} 5. Nf3 {[%clk 0:02:44]}  Qb6 {[%clk 0:02:44]} 6. Bd3 {[%clk 0:02:43]}  Bd7 {[%clk 0:02:41]} 7. O-O {[%clk 0:02:43]}  cxd4 {[%clk 0:02:37]} 8. Nbd2 {[%clk 0:02:44]}  Nge7 {[%clk 0:02:32]} 9. Re1 {[%clk 0:02:41]}  Nf5 {[%clk 0:02:29]} 10. Nf1 {[%clk 0:01:39]}  dxc3 {[%clk 0:02:11]} 11. bxc3 {[%clk 0:01:39]}  Bc5 {[%clk 0:02:10]} 12. Qe2 {[%clk 0:01:25]}  O-O {[%clk 0:01:58]} 13. h4 {[%clk 0:00:45]}  f6 {[%clk 0:01:42]} 14. exf6 {[%clk 0:00:44]}  Rxf6 {[%clk 0:01:41]} 15. Bg5 {[%clk 0:00:40]}  Rf7 {[%clk 0:01:40]} 16. Bxf5 {[%clk 0:00:21]}  Rxf5 {[%clk 0:01:36]} 17. Ng3 {[%clk 0:00:21]}  Rf7 {[%clk 0:01:34]} 18. Rab1 {[%clk 0:00:20]}  Qc7 {[%clk 0:01:33]} 19. Be3 {[%clk 0:00:20]}  Bd6 {[%clk 0:01:29]} 20. Nf1 {[%clk 0:00:20]}  Raf8 {[%clk 0:01:28]} 21. Ng5 {[%clk 0:00:20]}  Rf6 {[%clk 0:01:28]} 22. g3 {[%clk 0:00:20]}  h6 {[%clk 0:01:27]} 23. Nh3 {[%clk 0:00:19]}  e5 {[%clk 0:01:20]} 24. Kg2 {[%clk 0:00:20]}  Bf5 {[%clk 0:01:14]} 25. Ng1 {[%clk 0:00:18]}  Bxb1 {[%clk 0:01:13]} 26. Rxb1 {[%clk 0:00:18]}  d4 {[%clk 0:01:13]} 27. cxd4 {[%clk 0:00:18]}  exd4 {[%clk 0:01:13]} 28. Qc4+ {[%clk 0:00:18]}  Qf7 {[%clk 0:01:08]} 0-1


[Site "https://www.chess.com"]